bitfinex-derivatives/quotes_BTCF0:USTF0_20250719
["timestamp","ask_amount","ask_price","bid_price","bid_amount"]
[1752961654529,1.0330432,117640.0,117630.0,1.37179565]
[1752961655531,0.6830432,117640.0,117630.0,1.37175565]
[1752961656731,0.6830432,117640.0,117630.0,1.3108626]
[1752961657522,0.6830432,117640.0,117630.0,1.37204236]
[1752961659531,0.6830432,117640.0,117630.0,1.590876]
[1752961663135,0.84695472,117640.0,117630.0,1.53595388]
[1752961663330,0.6830432,117640.0,117630.0,1.53595388]
[1752961663530,0.84695472,117640.0,117630.0,1.53595388]
[1752961664628,0.6830432,117640.0,117630.0,1.53595388]
[1752961667437,0.513124,117640.0,117630.0,1.53595388]
[1752961667738,0.6830436,117640.0,117630.0,1.53595388]
[1752961667941,0.436404,117640.0,117630.0,1.53595388]
[1752961668131,0.257574,117640.0,117630.0,1.53595388]
[1752961668439,0.257574,117640.0,117630.0,1.47477412]
[1752961669239,0.212354,117640.0,117630.0,2.12870164]
[1752961669543,0.212354,117640.0,117630.0,2.20523806]
[1752961669738,0.212354,117640.0,117630.0,2.12870164]
[1752961669940,0.212354,117640.0,117630.0,2.20523806]
[1752961671038,0.212354,117640.0,117630.0,2.09589878]
[1752961674745,0.212354,117640.0,117630.0,1.92588278]
[1752961676746,0.212354,117640.0,117630.0,1.56508278]
[1752961676947,0.212354,117640.0,117630.0,2.28668278]
[1752961680247,0.212354,117640.0,117630.0,2.21014636]
[1752961680846,0.212354,117640.0,117630.0,2.31729736]
[1752961681147,0.212354,117640.0,117630.0,2.21014636]
[1752961681342,0.421444,117640.0,117630.0,2.21014636]
[1752961681536,0.421444,117640.0,117630.0,2.28652014]
[1752961681947,0.421444,117640.0,117630.0,2.06803638]
[1752961682147,0.421444,117640.0,117630.0,2.21014636]
[1752961684851,0.390124,117640.0,117630.0,2.21014636]
[1752961685050,0.390124,117640.0,117630.0,2.28652659]
[1752961687251,0.390124,117640.0,117630.0,2.21014636]
[1752961689147,0.390124,117640.0,117630.0,2.28653055]
[1752961689652,0.390124,117640.0,117630.0,2.21014636]
[1752961690152,0.390124,117640.0,117630.0,2.28653258]
[1752961690352,0.390124,117640.0,117630.0,2.21014636]
[1752961690552,0.390124,117640.0,117630.0,2.28653117]
[1752961691553,0.390124,117640.0,117630.0,2.21014636]
[1752961692254,0.390124,117640.0,117630.0,2.28653562]
[1752961692448,0.390124,117640.0,117630.0,2.21014636]
[1752961692749,0.390124,117640.0,117630.0,1.84934636]
[1752961692944,0.390124,117640.0,117630.0,2.31939142]
[1752961693756,0.390124,117640.0,117630.0,2.39578725]
[1752961694652,0.390124,117640.0,117630.0,2.31939142]
[1752961695450,0.390124,117640.0,117630.0,2.42654242]
[1752961699455,0.284724,117640.0,117630.0,2.42654242]
[1752961700159,0.390124,117640.0,117630.0,2.42654242]
[1752961704659,0.390124,117640.0,117630.0,2.0988136]
[1752961704964,0.390124,117640.0,117630.0,2.42654242]
[1752961709371,0.260384,117640.0,117630.0,2.42654242]
[1752961713672,0.260384,117640.0,117630.0,2.0988136]
[1752961713876,0.260384,117640.0,117630.0,2.42654242]
[1752961714377,0.260384,117640.0,117630.0,2.42641515]
[1752961715279,0.260384,117640.0,117630.0,2.31932507]
[1752961717574,0.500894,117640.0,117630.0,2.31932507]
[1752961719279,0.500894,117640.0,117630.0,2.42641598]
[1752961719778,0.500894,117640.0,117630.0,2.31932507]
[1752961724176,0.212354,117640.0,117630.0,2.31932507]
[1752961724773,0.212354,117640.0,117630.0,1.99159625]
[1752961724976,0.258254,117640.0,117630.0,2.31932507]
[1752961725182,0.258254,117640.0,117630.0,2.39581819]
[1752961725682,0.258254,117640.0,117630.0,2.31932507]
[1752961726180,0.258254,117640.0,117630.0,2.42641564]
[1752961728085,0.498764,117640.0,117630.0,2.42569564]
[1752961728686,0.417824,117640.0,117630.0,2.42569564]
[1752961728882,0.387254,117640.0,117630.0,2.42569564]
[1752961730586,0.27249767,117640.0,117630.0,2.42569564]
[1752961730885,0.27249767,117640.0,117630.0,2.31860507]
[1752961734284,0.27249767,117640.0,117630.0,2.42559753]
[1752961735285,0.27249767,117640.0,117630.0,2.31860507]
[1752961740691,0.15774125,117640.0,117630.0,2.33576507]
[1752961741892,0.15774125,117640.0,117630.0,2.44275427]
[1752961742591,0.36909525,117640.0,117630.0,2.44275427]
[1752961746689,0.12008621,117640.0,117630.0,2.60661868]
[1752961747495,0.12008621,117640.0,117630.0,2.49962948]
[1752961747995,0.12008621,117640.0,117630.0,2.64072948]
[1752961748300,0.12008621,117640.0,117630.0,2.49962948]
[1752961749896,0.09873814,117640.0,117630.0,2.49962948]
[1752961752801,0.05160593,117640.0,117630.0,2.49962948]
[1752961753697,0.33049593,117640.0,117630.0,1.75388507]
[1752961753903,0.33049593,117640.0,117630.0,2.33556507]
[1752961755102,0.33049593,117640.0,117630.0,1.84381954]
[1752961755302,0.33049593,117640.0,117630.0,2.42549954]
[1752961764012,0.33049593,117640.0,117630.0,2.31840507]
[1752961764615,0.33049593,117640.0,117630.0,2.33556507]
[1752961767220,0.33049593,117640.0,117630.0,2.44264713]
[1752961767719,0.33049593,117640.0,117630.0,2.33556507]
[1752961768018,0.33049593,117640.0,117630.0,2.44264713]
[1752961769016,0.33049593,117640.0,117630.0,2.33556507]
[1752961769217,0.33049593,117640.0,117630.0,2.44264713]
[1752961772919,0.33049593,117640.0,117630.0,2.33556507]
[1752961778938,0.33049593,117640.0,117630.0,2.44264691]
[1752961779639,0.33049593,117640.0,117630.0,2.33556507]
[1752961780836,0.26359593,117640.0,117630.0,2.41205402]
[1752961785242,0.26359593,117640.0,117630.0,2.33556507]
[1752961787642,0.09694593,117640.0,117630.0,2.49942948]
[1752961787843,0.05160593,117640.0,117630.0,2.49942948]
[1752961789044,0.09805593,117640.0,117630.0,2.49942948]
[1752961790338,0.1304,117660.0,117650.0,0.3770917]
[1752961790544,0.11606,117660.0,117650.0,2.69593426]
[1752961791042,0.11606,117660.0,117650.0,2.79144103]
[1752961792443,0.13898,117660.0,117650.0,2.79144103]
[1752961793245,0.13898,117660.0,117650.0,2.71496298]
[1752961793445,0.350334,117660.0,117650.0,2.79142427]
[1752961794046,0.350334,117660.0,117650.0,2.71496298]
[1752961794841,0.466604,117660.0,117650.0,2.38723416]
[1752961795145,0.466604,117660.0,117650.0,2.72326735]
[1752961797747,0.466604,117660.0,117650.0,2.79971545]
[1752961798545,0.466604,117660.0,117650.0,2.72326735]
[1752961798748,0.466604,117660.0,117650.0,2.79971334]
[1752961798946,0.211354,117660.0,117650.0,2.79971334]
[1752961799143,0.211354,117660.0,117650.0,2.72326735]
[1752961799647,0.311574,117660.0,117650.0,2.72326735]
[1752961799848,0.311574,117660.0,117650.0,2.83035188]
[1752961800049,0.334494,117660.0,117650.0,2.83035188]
[1752961800251,0.211354,117660.0,117650.0,2.83035188]
[1752961801052,0.311574,117660.0,117650.0,2.83035188]
[1752961804151,0.211354,117660.0,117650.0,2.83035188]
[1752961806352,0.20789184,117660.0,117650.0,2.83035188]
[1752961808551,0.20426216,117660.0,117650.0,2.83035188]
[1752961809855,0.30448216,117660.0,117650.0,2.83035188]
[1752961811654,0.20426216,117660.0,117650.0,2.83035188]
[1752961812160,0.30448216,117660.0,117650.0,2.83035188]
[1752961812660,0.30448216,117660.0,117650.0,2.83335188]
[1752961813955,0.20426216,117660.0,117650.0,2.83335188]
[1752961814160,0.20426216,117660.0,117650.0,2.50562306]
[1752961814361,0.30448216,117660.0,117650.0,2.83335188]
[1752961814755,0.20426216,117660.0,117650.0,2.83335188]
[1752961815064,0.20426216,117660.0,117650.0,2.99721629]
[1752961815464,0.20426216,117660.0,117650.0,2.89013176]
[1752961815760,0.17225216,117660.0,117650.0,2.96653877]
[1752961816160,0.10402216,117660.0,117650.0,2.96653877]
[1752961817464,0.10402216,117660.0,117650.0,2.80267436]
[1752961817960,0.20424216,117660.0,117650.0,2.80267436]
[1752961819569,0.10402216,117660.0,117650.0,2.80267436]
[1752961823863,0.20730216,117660.0,117650.0,2.96653877]
[1752961824369,0.20730216,117660.0,117650.0,4.06529176]
[1752961825069,0.20730216,117660.0,117650.0,4.17237629]
[1752961826665,0.20730216,117660.0,117650.0,3.28691188]
[1752961826871,0.20730216,117660.0,117650.0,4.00851188]
[1752961827771,0.20730216,117660.0,117650.0,3.68078306]
[1752961827973,0.20730216,117660.0,117650.0,4.00851188]
[1752961828674,0.20730216,117660.0,117650.0,3.28691188]
[1752961828875,0.20730216,117660.0,117650.0,4.00851188]
[1752961829475,0.10402216,117660.0,117650.0,4.17237629]
[1752961833678,0.10402216,117660.0,117650.0,4.06529176]
[1752961835789,0.10402216,117660.0,117650.0,4.17234594]
[1752961836491,0.07702216,117660.0,117650.0,4.17234594]
[1752961837187,0.07016,117680.0,117670.0,0.2754028]
[1752961837383,0.17344,117680.0,117670.0,2.43594955]
[1752961837890,0.28752,117680.0,117670.0,2.43594955]
[1752961838388,0.29052,117680.0,117670.0,2.43594955]
[1752961839390,0.003,117680.0,117670.0,2.43594955]
[1752961839989,0.10528,117680.0,117670.0,2.43594955]
[1752961840188,0.10328,117680.0,117670.0,2.36248507]
[1752961840390,0.339204,117680.0,117670.0,2.43889224]
[1752961840688,0.339204,117680.0,117670.0,2.36248507]
[1752961841090,0.339204,117680.0,117670.0,2.36348507]
[1752961841694,0.339204,117680.0,117670.0,2.47153925]
[1752961841886,0.339204,117680.0,117670.0,2.54082257]
[1752961842392,0.211354,117680.0,117670.0,2.54082257]
[1752961842584,0.211354,117680.0,117670.0,2.51014504]
[1752961842987,0.314634,117680.0,117670.0,2.51014504]
[1752961843182,0.314634,117680.0,117670.0,2.5976328]
[1752961843386,0.03491486,117680.0,117670.0,2.70468698]
[1752961843692,0.03491486,117680.0,117670.0,2.5976328]
[1752961844088,0.03491486,117680.0,117670.0,2.70468698]
[1752961844291,0.03059486,117680.0,117670.0,2.70468698]
[1752961844486,0.13387486,117680.0,117670.0,2.70468698]
[1752961844689,0.03059486,117680.0,117670.0,2.70468698]
[1752961845393,0.13387486,117680.0,117670.0,2.70468698]
[1752961845594,0.03059486,117680.0,117670.0,2.70468698]
[1752961845996,0.13387486,117680.0,117670.0,2.70468698]
[1752961847196,0.13387486,117680.0,117670.0,1.51457533]
[1752961847197,0.31811486,117680.0,117670.0,1.51457533]
[1752961847398,0.48798326,117680.0,117670.0,1.95788115]
[1752961847694,0.48798326,117680.0,117670.0,2.12776395]
[1752961848494,0.31811486,117680.0,117670.0,2.12768395]
[1752961848693,0.31811486,117680.0,117670.0,2.05137398]
[1752961851202,0.31811486,117680.0,117670.0,1.46857398]
[1752961851502,0.31811486,117680.0,117670.0,2.05185398]
[1752961854098,0.31811486,117680.0,117670.0,2.32614839]
[1752961854301,0.31811486,117680.0,117670.0,2.32606839]
[1752961854906,0.31811486,117680.0,117670.0,2.33029839]
[1752961855607,0.31811486,117680.0,117670.0,2.40660836]
[1752961859709,0.20403486,117680.0,117670.0,2.40660836]
[1752961861506,0.03059486,117680.0,117670.0,2.40660836]
[1752961862810,0.13234486,117680.0,117670.0,2.40660836]
[1752961864107,0.15682486,117680.0,117670.0,2.33029839]
[1752961865112,0.15682486,117680.0,117670.0,2.40666207]
[1752961867405,0.20389486,117680.0,117670.0,2.40666207]
[1752961876221,0.20389486,117680.0,117670.0,3.58070207]
[1752961876719,0.20389486,117680.0,117670.0,1.82346207]
[1752961877021,0.15682486,117680.0,117670.0,3.25297325]
[1752961877216,0.15682486,117680.0,117670.0,3.58070207]
[1752961877511,0.15682486,117680.0,117670.0,3.50433839]
[1752961877921,0.03059486,117680.0,117670.0,3.50433839]
[1752961879224,0.03059486,117680.0,117670.0,3.17660957]
[1752961879522,0.03059486,117680.0,117670.0,3.50433839]
[1752961879722,0.03059486,117680.0,117670.0,3.61139257]
[1752961880518,0.03059486,117680.0,117670.0,3.91635698]
[1752961880719,0.03059486,117680.0,117670.0,3.28366375]
[1752961880913,0.03059486,117680.0,117670.0,3.6682028]
[1752961882325,0.00144632,117680.0,117670.0,3.6682028]
[1752961883522,0.00144632,117680.0,117670.0,3.6681228]
[1752961884218,0.10151632,117680.0,117670.0,3.6681228]
[1752961885719,0.10151632,117680.0,117670.0,3.17652957]
[1752961886024,0.10151632,117680.0,117670.0,3.6681228]
[1752961887823,0.10151632,117680.0,117670.0,3.77503345]
[1752961888522,0.12448632,117680.0,117670.0,3.77503345]
[1752961895227,0.12448632,117680.0,117670.0,3.6681228]
[1752961897832,0.10151632,117680.0,117670.0,3.6681228]
[1752961899130,0.00144632,117680.0,117670.0,3.6681228]
[1752961902033,0.10151632,117680.0,117670.0,3.6681228]
[1752961906434,0.12448632,117680.0,117670.0,3.6681228]
[1752961907038,0.12448632,117680.0,117670.0,2.9465228]
[1752961907236,0.12448632,117680.0,117670.0,3.6681228]
[1752961908943,0.12448632,117680.0,117670.0,2.9465228]
[1752961909240,0.12448632,117680.0,117670.0,3.6681228]
[1752961909441,0.10151632,117680.0,117670.0,3.6681228]
[1752961913248,0.0987578,117680.0,117670.0,3.6681228]
[1752961915250,0.3101118,117680.0,117670.0,3.6681228]
[1752961918854,0.30734394,117680.0,117670.0,3.6681228]
[1752961920152,0.38128394,117680.0,117670.0,3.6681228]
[1752961921350,0.38128394,117680.0,117670.0,1.9109628]
[1752961921551,0.38128394,117680.0,117670.0,3.50361839]
[1752961922554,0.38128394,117680.0,117670.0,3.6674828]
[1752961924254,0.33178394,117680.0,117670.0,3.6674828]
[1752961924857,0.37938824,117680.0,117670.0,3.6674828]
[1752961927453,0.32988824,117680.0,117670.0,3.6674828]
[1752961927655,0.30544824,117680.0,117670.0,3.6674828]
[1752961928555,0.37938824,117680.0,117670.0,3.6674828]
[1752961930061,0.37938824,117680.0,117670.0,3.82055565]
[1752961930861,0.37938824,117680.0,117670.0,3.6674828]
[1752961931658,0.37938824,117680.0,117670.0,3.82055565]
[1752961932164,0.37938824,117680.0,117670.0,2.06403565]
[1752961932365,0.37938824,117680.0,117670.0,3.82055565]
[1752961932570,0.37938824,117680.0,117670.0,3.6674828]
[1752961933765,0.49261824,117680.0,117670.0,3.6674828]
[1752961934267,0.37938824,117680.0,117670.0,3.6674828]
[1752961940775,0.37938824,117680.0,117670.0,3.82055565]
[1752961944871,0.37938824,117680.0,117670.0,3.6674828]
[1752961945576,0.37938824,117680.0,117670.0,3.82055565]
[1752961949670,0.37938824,117680.0,117670.0,3.6674828]
[1752961949869,0.37938824,117680.0,117670.0,3.6675228]
[1752961953977,0.13009739,117700.0,117690.0,0.2706639]
[1752961954172,0.13009739,117700.0,117690.0,2.40657411]
[1752961954371,0.13009739,117700.0,117690.0,2.40657365]
[1752961954570,0.13009739,117700.0,117690.0,2.50301365]
[1752961954979,0.13109739,117700.0,117690.0,2.17528483]
[1752961955279,0.13309739,117700.0,117690.0,2.50301365]
[1752961955778,0.13309739,117700.0,117690.0,2.52656365]
[1752961956080,0.30421739,117700.0,117690.0,2.52656365]
[1752961957180,0.51557139,117700.0,117690.0,2.52656365]
[1752961958181,0.51557139,117700.0,117690.0,1.80496365]
[1752961958380,0.51557139,117700.0,117690.0,2.52656365]
[1752961969083,0.68541099,117700.0,117690.0,2.52656365]
[1752961969391,0.51557139,117700.0,117690.0,2.52656365]
[1752961969587,0.51557139,117700.0,117690.0,2.19883483]
[1752961969787,0.51557139,117700.0,117690.0,2.36269924]
[1752961969978,0.51557139,117700.0,117690.0,2.52656365]
[1752961971088,0.498554,117700.0,117690.0,2.52656365]
[1752961975694,0.6683935,117700.0,117690.0,2.52656365]
[1752961976395,0.498554,117700.0,117690.0,2.52656365]
[1752961982198,0.430884,117700.0,117690.0,2.52656365]
[1752961982398,0.383734,117700.0,117690.0,2.52656365]
[1752961991013,0.429664,117700.0,117690.0,2.52656365]
[1752961992916,0.496754,117700.0,117690.0,2.52656365]
[1752961996316,0.429664,117700.0,117690.0,2.52656365]
[1752961998517,0.496754,117700.0,117690.0,2.52656365]
[1752962000620,0.429664,117700.0,117690.0,2.52656365]
[1752962001919,0.429664,117700.0,117690.0,1.94492365]
[1752962002114,0.429664,117700.0,117690.0,2.52804365]
[1752962002619,0.429664,117700.0,117690.0,2.20031483]
[1752962002820,0.429664,117700.0,117690.0,2.52804365]
[1752962003923,0.496964,117700.0,117690.0,2.52804365]
[1752962005815,0.211354,117700.0,117690.0,2.52804365]
[1752962006123,0.2122836,117710.0,117690.0,2.52804365]
[1752962006124,0.11141,117760.0,117750.0,0.3210663]
[1752962006324,0.4808129,117760.0,117750.0,1.3626663]
[1752962006618,0.9006609,117760.0,117750.0,1.1888063]
[1752962006819,0.9006609,117760.0,117750.0,1.37530071]
[1752962007318,0.9066609,117760.0,117750.0,1.442471]
[1752962007623,0.6596609,117760.0,117750.0,1.442471]
[1752962008119,0.8343809,117760.0,117750.0,1.442471]
[1752962008420,0.8343809,117760.0,117750.0,1.772471]
[1752962008619,0.8283809,117760.0,117750.0,1.772471]
[1752962008820,0.8293809,117760.0,117750.0,1.442471]
[1752962009021,1.0407349,117760.0,117750.0,1.442471]
[1752962010118,0.8708869,117760.0,117750.0,1.442471]
[1752962010320,0.8708869,117760.0,117750.0,1.45106676]
[1752962010622,0.6215269,117760.0,117750.0,1.66720235]
[1752962010827,0.2840869,117760.0,117750.0,1.66720235]
[1752962011024,0.2840869,117760.0,117750.0,1.99493117]
[1752962011729,0.264684,117760.0,117750.0,1.99493117]
[1752962012122,0.215354,117760.0,117750.0,1.99493117]
[1752962018028,0.214354,117760.0,117750.0,1.99493117]
[1752962019330,0.260684,117760.0,117750.0,1.99493117]
[1752962021430,0.260684,117760.0,117750.0,2.59181117]
[1752962021825,0.211354,117760.0,117750.0,2.59181117]
[1752962022733,0.285474,117760.0,117750.0,2.59181117]
[1752962023234,0.260684,117760.0,117750.0,2.59181117]
[1752962024033,0.211354,117760.0,117750.0,2.59181117]
[1752962025534,0.260684,117760.0,117750.0,2.59181117]
[1752962025833,0.211354,117760.0,117750.0,2.59181117]
[1752962026034,0.260684,117760.0,117750.0,2.59181117]
[1752962026935,0.285474,117760.0,117750.0,2.59181117]
[1752962027135,0.260684,117760.0,117750.0,2.59181117]
[1752962027829,0.211354,117760.0,117750.0,2.59181117]
[1752962028737,0.260684,117760.0,117750.0,2.59181117]
[1752962031939,0.211354,117760.0,117750.0,2.75567558]
[1752962032638,0.211354,117760.0,117750.0,2.26408235]
[1752962032938,0.211354,117760.0,117750.0,2.75567558]
[1752962034238,0.211354,117760.0,117750.0,2.81638509]
[1752962035436,0.211354,117760.0,117750.0,2.95738509]
[1752962035631,0.211354,117760.0,117750.0,2.81638509]
[1752962038441,0.211354,117760.0,117750.0,2.75567558]
[1752962039135,0.211354,117760.0,117750.0,2.83205136]
[1752962039438,0.211354,117760.0,117750.0,2.34045813]
[1752962039637,0.211354,117760.0,117750.0,2.66818695]
[1752962042241,0.211354,117760.0,117750.0,2.83205136]
[1752962045545,0.211354,117760.0,117750.0,2.97305136]
[1752962045741,0.211354,117760.0,117750.0,2.83205136]
[1752962047142,0.211354,117760.0,117750.0,2.89315936]
[1752962047345,0.211354,117760.0,117750.0,2.81678358]
[1752962048940,0.259334,117760.0,117750.0,2.81678358]
[1752962049137,0.302564,117760.0,117750.0,2.81678358]
[1752962049343,0.495494,117760.0,117750.0,2.62660917]
[1752962049648,0.495494,117760.0,117750.0,2.58034917]
[1752962049844,0.495494,117760.0,117750.0,2.62547917]
[1752962050145,0.495494,117760.0,117750.0,2.64840917]
[1752962052155,0.495494,117760.0,117750.0,2.58730117]
[1752962052749,0.495494,117760.0,117750.0,2.64843167]
[1752962053750,0.495494,117760.0,117750.0,1.92683167]
[1752962053949,0.495494,117760.0,117750.0,2.64843167]
[1752962055151,0.495494,117760.0,117750.0,2.58730117]
[1752962057253,0.495494,117760.0,117750.0,2.66367695]
[1752962058643,0.495494,117760.0,117750.0,2.69436144]
[1752962060754,0.425514,117760.0,117750.0,2.69436144]
[1752962061353,0.315114,117760.0,117750.0,2.69436144]
[1752962061743,0.211354,117760.0,117750.0,2.69436144]
[1752962062254,0.256804,117760.0,117750.0,2.69436144]
[1752962062455,0.211354,117760.0,117750.0,2.69436144]
[1752962062859,0.487864,117760.0,117750.0,2.69436144]
[1752962064456,0.211354,117760.0,117750.0,2.69436144]
[1752962064955,0.256804,117760.0,117750.0,2.69436144]
[1752962066154,0.211354,117760.0,117750.0,2.85822585]
[1752962067454,0.17907368,117760.0,117750.0,2.85822585]
[1752962072662,0.22452368,117760.0,117750.0,2.85822585]
[1752962073461,0.17907368,117760.0,117750.0,2.85822585]
[1752962073760,0.22452368,117760.0,117750.0,2.85822585]
[1752962075962,0.45558368,117760.0,117750.0,2.69436144]
[1752962076263,0.45558368,117760.0,117750.0,2.67143144]
[1752962076664,0.45558368,117760.0,117750.0,2.10203144]
[1752962076865,0.45558368,117760.0,117750.0,2.70059144]
[1752962077976,0.45558368,117760.0,117750.0,2.59353117]
[1752962080773,0.45558368,117760.0,117750.0,2.70059144]
[1752962081173,0.45558368,117760.0,117750.0,2.59353117]
[1752962081675,0.45558368,117760.0,117750.0,2.66993514]
[1752962084671,0.78920099,117760.0,117750.0,1.62350605]
[1752962084867,0.62533658,117760.0,117750.0,2.09389443]
[1752962085069,0.62533658,117760.0,117750.0,2.25196183]
[1752962085480,0.45558368,117760.0,117750.0,2.25196183]
[1752962085669,0.62533668,117760.0,117750.0,2.17555786]
[1752962086176,0.62533668,117760.0,117750.0,2.14297786]
[1752962087080,0.62533668,117760.0,117750.0,2.19723095]
[1752962087477,0.62533668,117760.0,117750.0,2.25833072]
[1752962089381,0.62533668,117760.0,117750.0,1.53673072]
[1752962089584,0.62533668,117760.0,117750.0,1.89753072]
[1752962089880,0.62533668,117760.0,117750.0,1.83643095]
[1752962090474,0.62533668,117760.0,117750.0,1.91283492]
[1752962090683,0.62533668,117760.0,117750.0,1.84825492]
[1752962091482,0.62533668,117760.0,117750.0,1.77185095]
[1752962092583,0.62533668,117760.0,117750.0,1.44185095]
[1752962092876,0.62533668,117760.0,117750.0,1.54355095]
[1752962093282,0.62533668,117760.0,117750.0,1.32543345]
[1752962093481,0.62533668,117760.0,117750.0,1.54355095]
[1752962094083,0.62533668,117760.0,117750.0,0.62633345]
[1752962094379,0.62533668,117760.0,117750.0,0.92218114]
[1752962094585,0.62533668,117760.0,117750.0,1.14029864]
[1752962095087,0.98613668,117760.0,117750.0,1.14029864]
[1752962096882,0.98613668,117760.0,117750.0,0.86113355]
[1752962097081,0.98613668,117760.0,117750.0,1.07925105]
[1752962100581,1.52598468,117760.0,117750.0,0.07576605]
[1752962100884,0.4424075,117750.0,117740.0,1.0678558]
[1752962101284,0.4424075,117750.0,117740.0,1.1354475]
[1752962101485,0.4424075,117750.0,117740.0,1.14367959]
[1752962102086,0.4424075,117750.0,117740.0,1.14467959]
[1752962102381,0.4424075,117750.0,117740.0,1.20572728]
[1752962102582,0.4424075,117750.0,117740.0,1.14467959]
[1752962102782,0.4424075,117750.0,117740.0,1.14567959]
[1752962103582,0.4424075,117750.0,117740.0,1.24737959]
[1752962103775,0.4424075,117750.0,117740.0,1.31347959]
[1752962104485,0.4424075,117750.0,117740.0,1.31331959]
[1752962105190,0.62148118,117750.0,117740.0,1.37436728]
[1752962106987,0.62148118,117750.0,117740.0,1.4834641]
[1752962107582,0.62148118,117750.0,117740.0,1.11380488]
[1752962107788,0.62148118,117750.0,117740.0,1.37997151]
[1752962110791,0.62148118,117750.0,117740.0,1.33752851]
[1752962110990,0.79133718,117750.0,117740.0,1.16908851]
[1752962111192,0.79133718,117750.0,117740.0,1.00548135]
[1752962111389,1.31574434,117750.0,117740.0,0.89675864]
[1752962111786,1.15213718,117750.0,117740.0,0.73315148]
[1752962111986,1.49213718,117750.0,117740.0,0.89675864]
[1752962112289,1.49213718,117750.0,117740.0,1.00549285]
[1752962112590,1.49213718,117750.0,117740.0,1.10719285]
[1752962113092,2.24886434,117750.0,117740.0,0.24143095]
[1752962114086,1.90886434,117750.0,117740.0,0.24143095]
[1752962114287,2.22886434,117750.0,117740.0,0.24143095]
[1752962114592,2.22886434,117750.0,117740.0,0.07782379]
[1752962114992,2.22886434,117750.0,117740.0,0.24143095]
[1752962115788,2.22886434,117750.0,117740.0,0.07782379]
[1752962115989,2.22886434,117750.0,117740.0,0.24143095]
[1752962116291,2.24597847,117750.0,117740.0,0.07782379]
[1752962116690,2.07612247,117750.0,117740.0,0.07782379]
[1752962117992,0.1697819,117740.0,117730.0,0.22465485]
[1752962118294,0.4424364,117730.0,117720.0,1.17341555]
[1752962118490,0.45986738,117730.0,117720.0,1.17341555]
[1752962118692,0.82066738,117730.0,117720.0,1.03616579]
[1752962119089,0.82066738,117730.0,117720.0,0.44380579]
[1752962119489,1.41294738,117730.0,117720.0,0.61141295]
[1752962119695,1.41294738,117730.0,117720.0,0.68612522]
[1752962120392,1.59202106,117730.0,117720.0,0.84973238]
[1752962121890,1.59202106,117730.0,117720.0,0.85173238]
[1752962122888,0.17907368,117730.0,117720.0,1.44899954]
[1752962123092,0.34886998,117730.0,117720.0,0.95817806]
[1752962123291,0.34886998,117730.0,117720.0,1.44899954]
[1752962123689,0.34886998,117730.0,117720.0,1.76899954]
[1752962123690,0.15428368,117730.0,117720.0,1.76899954]
[1752962123990,0.43048,117770.0,117760.0,0.246183]
[1752962124195,0.5860886,117770.0,117760.0,1.43773016]
[1752962124396,0.5860886,117770.0,117760.0,1.60133732]
[1752962124596,0.5860886,117770.0,117760.0,1.66233564]
[1752962125098,0.5880886,117770.0,117760.0,1.66233564]
[1752962125296,0.5890886,117770.0,117760.0,1.66233564]
[1752962125792,0.4090886,117770.0,117760.0,2.02313564]
[1752962126890,0.4090886,117770.0,117760.0,1.91394885]
[1752962127086,0.6204426,117770.0,117760.0,1.91394885]
[1752962128400,0.6437726,117770.0,117760.0,1.91394885]
[1752962129600,0.7421926,117770.0,117760.0,1.91394885]
[1752962135207,0.7421926,117770.0,117760.0,1.85295053]
[1752962142108,0.572454,117770.0,117760.0,1.85295053]
[1752962142314,0.260704,117770.0,117760.0,2.07097806]
[1752962143017,0.260704,117770.0,117760.0,1.85295053]
[1752962145209,0.260704,117770.0,117760.0,1.91394885]
[1752962146709,0.260704,117770.0,117760.0,1.69592132]
[1752962146916,0.260704,117770.0,117760.0,1.91394885]
[1752962147712,0.260704,117770.0,117760.0,1.69592132]
[1752962147916,0.260704,117770.0,117760.0,1.91394885]
[1752962148217,0.284034,117770.0,117760.0,1.91394885]
[1752962148413,0.382454,117770.0,117760.0,1.91394885]
[1752962152325,0.382454,117770.0,117760.0,1.85295053]
[1752962153524,0.382454,117770.0,117760.0,1.9293545]
[1752962155026,0.382454,117770.0,117760.0,2.03837469]
[1752962155517,0.382454,117770.0,117760.0,2.39917469]
[1752962158931,0.382454,117770.0,117760.0,2.07212697]
[1752962159124,0.382454,117770.0,117760.0,2.39917469]
[1752962166733,0.382454,117770.0,117760.0,2.32277072]
[1752962169138,0.382454,117770.0,117760.0,2.39918508]
[1752962169335,0.382454,117770.0,117760.0,2.56270894]
[1752962169540,0.284034,117770.0,117760.0,2.39918508]
[1752962171332,0.377644,117770.0,117760.0,2.39918508]
[1752962171839,0.377644,117770.0,117760.0,2.32277072]
[1752962172239,0.377644,117770.0,117760.0,2.42983099]
[1752962173335,0.377644,117770.0,117760.0,2.32277072]
[1752962174140,0.377644,117770.0,117760.0,2.42983099]
[1752962174644,0.284034,117770.0,117760.0,2.39918791]
[1752962175340,0.377644,117770.0,117760.0,2.39918791]
[1752962175843,0.377644,117770.0,117760.0,2.32277072]
[1752962177936,0.377644,117770.0,117760.0,2.39918598]
[1752962178736,0.377644,117770.0,117760.0,2.32277072]
[1752962179747,0.262944,117770.0,117760.0,2.56270918]
[1752962179950,0.214354,117770.0,117760.0,2.56270918]
[1752962180341,0.262234,117770.0,117760.0,2.56270918]
[1752962181147,0.262234,117770.0,117760.0,2.39918532]
[1752962181349,0.262234,117770.0,117760.0,2.32277072]
[1752962182549,0.285394,117770.0,117760.0,2.39918501]
[1752962182750,0.376294,117770.0,117760.0,2.39918501]
[1752962190756,0.376294,117770.0,117760.0,1.67758501]
[1752962190956,0.376294,117770.0,117760.0,2.39918501]
[1752962195162,0.376294,117770.0,117760.0,2.32277072]
[1752962195852,0.376294,117770.0,117760.0,2.42983099]
[1752962197863,0.376294,117770.0,117760.0,1.70823099]
[1752962198063,0.376294,117770.0,117760.0,2.42983099]
[1752962198366,0.481554,117770.0,117760.0,1.83811099]
[1752962198663,0.479554,117770.0,117760.0,2.24062072]
[1752962198858,0.479554,117770.0,117760.0,1.913573]
[1752962199059,0.479554,117770.0,117760.0,2.24062072]
[1752962199459,0.479554,117770.0,117760.0,2.31290072]
[1752962199663,0.479554,117770.0,117760.0,2.24062072]
[1752962199965,0.478554,117770.0,117760.0,2.24062072]
[1752962200262,0.478554,117770.0,117760.0,2.31290072]
[1752962200463,0.416634,117770.0,117760.0,2.38931572]
[1752962200766,0.478554,117770.0,117760.0,2.38931572]
[1752962201270,0.478554,117770.0,117760.0,2.062268]
[1752962201564,0.478554,117770.0,117760.0,2.38931572]
[1752962209265,0.478554,117770.0,117760.0,1.80331572]
[1752962209467,0.478554,117770.0,117760.0,2.38927572]
[1752962210464,0.478554,117770.0,117760.0,2.31286072]
[1752962217972,0.478554,117770.0,117760.0,2.38926247]